[Event "Deloitte NK 2021"]
[Site "Hoogeveen, Netherlands"]
[Date "2021.10.15"]
[Round "1.6"]
[White "Beerdsen, Thomas"]
[Black "Brandenburg, Daan"]
[Result "1-0"]
[TimeControl "90min/40moves + 30min + 30sec/move"]
[WhiteElo "2454"]
[BlackElo "2482"]

1. e4 {[%clk 01:30:56]} {[%emt 00:00:03]} d6 {[%clk 01:30:56]} {[%emt
00:00:05]} 2. d4 {[%clk 01:31:05]} {[%emt 00:00:21]} Nf6 {[%clk 01:31:20]}
{[%emt 00:00:07]} 3. Nc3 {[%clk 01:31:22]} {[%emt 00:00:11]} Nbd7 {[%clk
01:31:39]} {[%emt 00:00:11]} 4. Nf3 {[%clk 01:31:29]} {[%emt 00:00:24]} e5
{[%clk 01:31:57]} {[%emt 00:00:12]} 5. Bc4 {[%clk 01:31:02]} {[%emt 00:00:57]}
Be7 {[%clk 01:32:15]} {[%emt 00:00:12]} 6. O-O {[%clk 01:31:01]} {[%emt
00:00:31]} O-O {[%clk 01:32:38]} {[%emt 00:00:07]} 7. a4 {[%clk 01:31:10]}
{[%emt 00:00:21]} a6 {[%clk 01:32:37]} {[%emt 00:00:32]} 8. a5 {[%clk
01:31:22]} {[%emt 00:00:16]} b5 {[%clk 01:32:30]} {[%emt 00:00:37]} 9. axb6
{[%clk 01:31:44]} {[%emt 00:00:08]} cxb6 {[%clk 01:32:55]} {[%emt 00:00:06]} 10.
Qe2 {[%clk 01:31:56]} {[%emt 00:00:17]} Bb7 {[%clk 01:32:55]} {[%emt 00:00:31]}
11. Rxa6 {[%clk 01:32:15]} {[%emt 00:00:11]} Bxa6 {[%clk 01:32:41]} {[%emt
00:00:43]} 12. Bxa6 {[%clk 01:32:03]} {[%emt 00:00:42]} Qc7 {[%clk 01:24:50]}
{[%emt 00:08:22]} 13. d5 {[%clk 01:24:07]} {[%emt 00:08:26]} b5 {[%clk
01:01:59]} {[%emt 00:23:21]} 14. Bxb5 {[%clk 01:22:18]} {[%emt 00:02:19]} Ra1
{[%clk 00:59:15]} {[%emt 00:03:14]} 15. Nd2 {[%clk 01:15:24]} {[%emt 00:07:23]}
Nc5 {[%clk 00:55:00]} {[%emt 00:04:47]} 16. Qc4 {[%clk 01:07:31]} {[%emt
00:08:21]} Nfd7 {[%clk 00:51:58]} {[%emt 00:03:33]} 17. Bc6 {[%clk 00:56:10]}
{[%emt 00:11:51]} Nb6 {[%clk 00:34:52]} {[%emt 00:17:36]} 18. Qe2 {[%clk
00:54:34]} {[%emt 00:02:06]} Bg5 {[%clk 00:34:32]} {[%emt 00:00:49]} 19. b4
{[%clk 00:46:09]} {[%emt 00:08:55]} Na6 {[%clk 00:31:16]} {[%emt 00:03:47]} 20.
Nb3 {[%clk 00:39:55]} {[%emt 00:06:45]} Rxc1 {[%clk 00:31:38]} {[%emt
00:00:08]} 21. Nxc1 {[%clk 00:35:12]} {[%emt 00:05:13]} Nxb4 {[%clk 00:32:03]}
{[%emt 00:00:05]} 22. Nb5 {[%clk 00:35:27]} {[%emt 00:00:14]} Qb8 {[%clk
00:32:17]} {[%emt 00:00:15]} 23. Nb3 {[%clk 00:25:18]} {[%emt 00:10:40]} Nxc6
{[%clk 00:21:51]} {[%emt 00:10:57]} 24. dxc6 {[%clk 00:24:59]} {[%emt
00:00:49]} Qa8 {[%clk 00:20:52]} {[%emt 00:01:29]} 25. c7 {[%clk 00:23:02]}
{[%emt 00:02:26]} Be7 {[%clk 00:16:34]} {[%emt 00:04:48]} 26. Rd1 {[%clk
00:18:24]} {[%emt 00:05:08]} Rc8 {[%clk 00:11:18]} {[%emt 00:05:45]} 27. Ra1
{[%clk 00:16:03]} {[%emt 00:02:52]} Qb7 {[%clk 00:11:29]} {[%emt 00:00:19]} 28.
Ra7 {[%clk 00:11:55]} {[%emt 00:04:38]} Qc6 {[%clk 00:11:41]} {[%emt 00:00:18]}
29. Na5 {[%clk 00:11:31]} {[%emt 00:00:54]} Qc5 {[%clk 00:07:27]} {[%emt
00:04:44]} 30. Rb7 {[%clk 00:10:34]} {[%emt 00:01:28]} g6 {[%clk 00:06:49]}
{[%emt 00:01:08]} 31. g3 {[%clk 00:08:04]} {[%emt 00:03:00]} Kg7 {[%clk
00:06:57]} {[%emt 00:00:21]} 32. c4 {[%clk 00:07:15]} {[%emt 00:01:19]} Kf6
{[%clk 00:02:09]} {[%emt 00:05:18]} 33. Qe3 {[%clk 00:05:22]} {[%emt 00:02:24]}
Qxe3 {[%clk 00:02:15]} {[%emt 00:00:24]} 34. fxe3 {[%clk 00:05:48]} {[%emt
00:00:04]} Na8 {[%clk 00:02:38]} {[%emt 00:00:07]} 35. Nc6 {[%clk 00:05:18]}
{[%emt 00:01:00]} 1-0

[Event "Deloitte NK 2021"]
[Site "Hoogeveen, Netherlands"]
[Date "2021.10.15"]
[Round "1.7"]
[White "Vrolijk, Liam"]
[Black "Nijboer, Friso"]
[Result "1-0"]
[TimeControl "90min/40moves + 30min + 30sec/move"]
[WhiteElo "2480"]
[BlackElo "2468"]

1. d4 {[%clk 01:30:56]} {[%emt 00:00:03]} Nf6 {[%clk 01:30:51]} {[%emt
00:00:09]} 2. c4 {[%clk 01:31:20]} {[%emt 00:00:07]} g6 {[%clk 01:31:07]}
{[%emt 00:00:13]} 3. Nc3 {[%clk 01:31:44]} {[%emt 00:00:06]} Bg7 {[%clk
01:31:30]} {[%emt 00:00:07]} 4. e4 {[%clk 01:32:08]} {[%emt 00:00:06]} d6
{[%clk 01:31:56]} {[%emt 00:00:04]} 5. Nf3 {[%clk 01:32:33]} {[%emt 00:00:05]}
O-O {[%clk 01:32:17]} {[%emt 00:00:09]} 6. h3 {[%clk 01:32:58]} {[%emt
00:00:06]} e5 {[%clk 01:32:08]} {[%emt 00:00:39]} 7. d5 {[%clk 01:33:21]}
{[%emt 00:00:06]} a5 {[%clk 01:32:34]} {[%emt 00:00:04]} 8. g4 {[%clk
01:33:37]} {[%emt 00:00:14]} Na6 {[%clk 01:32:59]} {[%emt 00:00:06]} 9. Be3
{[%clk 01:34:02]} {[%emt 00:00:05]} Nc5 {[%clk 01:33:14]} {[%emt 00:00:15]} 10.
Nd2 {[%clk 01:34:25]} {[%emt 00:00:07]} c6 {[%clk 01:33:32]} {[%emt 00:00:12]}
11. Be2 {[%clk 01:33:48]} {[%emt 00:01:07]} a4 {[%clk 01:33:44]} {[%emt
00:00:18]} 12. g5 {[%clk 01:32:52]} {[%emt 00:01:25]} Nfd7 {[%clk 01:33:41]}
{[%emt 00:00:34]} 13. h4 {[%clk 01:30:09]} {[%emt 00:03:13]} Qb6 {[%emt
00:15:42]} 14. Qb1 {[%clk 01:28:23]} f5 {[%clk 01:15:23]} {[%emt 00:05:52]} 15.
f3 {[%clk 01:27:38]} {[%emt 00:01:14]} f4 {[%clk 01:15:18]} {[%emt 00:00:36]}
16. Bf2 {[%clk 01:22:49]} {[%emt 00:05:19]} Qa5 {[%clk 01:14:27]} {[%emt
00:01:21]} 17. Kf1 {[%clk 01:09:27]} {[%emt 00:13:52]} Rf7 {[%clk 01:05:47]}
{[%emt 00:09:10]} 18. Kg2 {[%clk 01:07:47]} {[%emt 00:02:09]} Qd8 {[%clk
01:02:38]} {[%emt 00:03:39]} 19. b4 {[%clk 00:58:05]} {[%emt 00:10:12]} axb3
{[%clk 01:02:25]} {[%emt 00:00:43]} 20. axb3 {[%clk 00:56:58]} {[%emt
00:01:37]} Rxa1 {[%clk 01:02:08]} {[%emt 00:00:48]} 21. Qxa1 {[%clk 00:57:22]}
{[%emt 00:00:05]} Na6 {[%clk 00:40:02]} {[%emt 00:22:37]} 22. dxc6 {[%clk
00:42:00]} {[%emt 00:15:52]} Ndc5 {[%clk 00:36:55]} {[%emt 00:03:37]} 23. cxb7
{[%clk 00:38:58]} {[%emt 00:03:32]} Rxb7 {[%clk 00:37:11]} {[%emt 00:00:14]} 24.
Nd5 {[%clk 00:32:26]} {[%emt 00:07:01]} Nb4 {[%clk 00:28:58]} {[%emt 00:08:44]}
25. Qc3 {[%clk 00:28:39]} {[%emt 00:04:17]} Na2 {[%clk 00:23:45]} {[%emt
00:05:43]} 26. Qb2 {[%clk 00:26:57]} {[%emt 00:02:11]} Nb4 {[%clk 00:24:12]}
{[%emt 00:00:04]} 27. Nxb4 {[%clk 00:26:08]} {[%emt 00:01:19]} Rxb4 {[%clk
00:24:37]} {[%emt 00:00:05]} 28. Qa3 {[%clk 00:24:09]} {[%emt 00:02:27]} Rb8
{[%clk 00:22:07]} {[%emt 00:03:02]} 29. b4 {[%clk 00:22:05]} {[%emt 00:02:34]}
Ne6 {[%clk 00:22:24]} {[%emt 00:00:13]} 30. Nb3 {[%clk 00:20:55]} {[%emt
00:01:39]} h6 {[%clk 00:21:32]} {[%emt 00:01:23]} 31. gxh6 {[%clk 00:19:27]}
{[%emt 00:01:57]} Bxh6 {[%clk 00:21:55]} {[%emt 00:00:07]} 32. c5 {[%clk
00:18:18]} {[%emt 00:01:39]} dxc5 {[%clk 00:21:43]} {[%emt 00:00:43]} 33. bxc5
{[%clk 00:14:26]} {[%emt 00:04:21]} Bf8 {[%clk 00:11:57]} {[%emt 00:10:16]} 34.
Bc4 {[%clk 00:12:55]} {[%emt 00:02:00]} Kh7 {[%clk 00:09:53]} {[%emt 00:02:35]}
35. Bd5 {[%clk 00:09:49]} {[%emt 00:03:36]} Nc7 {[%clk 00:03:55]} {[%emt
00:06:29]} 36. Bc4 {[%clk 00:06:18]} {[%emt 00:04:00]} Ne6 {[%clk 00:02:25]}
{[%emt 00:02:00]} 37. Qa1 {[%clk 00:06:07]} {[%emt 00:00:41]} Bg7 {[%clk
00:01:42]} {[%emt 00:01:13]} 38. c6 {[%clk 00:04:53]} {[%emt 00:01:44]} Nd4
{[%clk 00:01:25]} {[%emt 00:00:48]} 39. Nxd4 {[%clk 00:04:17]} {[%emt
00:01:05]} exd4 {[%clk 00:01:52]} {[%emt 00:00:04]} 40. Qa3 {[%clk 00:01:39]}
{[%emt 00:03:07]} g5 {[%clk 00:00:42]} {[%emt 00:01:41]} 41. Qa7 {[%clk
00:29:01]} {[%emt 00:03:07]} 1-0

[Event "Deloitte NK 2021"]
[Site "Hoogeveen, Netherlands"]
[Date "2021.10.15"]
[Round "1.8"]
[White "Pijpers, Arthur"]
[Black "Hendriks, Willy"]
[Result "1/2-1/2"]
[TimeControl "90min/40moves + 30min + 30sec/move"]
[WhiteElo "2474"]
[BlackElo "2439"]

1. e4 {[%clk 01:30:56]} {[%emt 00:00:03]} c5 {[%clk 01:30:47]} {[%emt
00:00:12]} 2. Nf3 {[%clk 01:31:23]} {[%emt 00:00:05]} e6 {[%clk 01:31:04]}
{[%emt 00:00:12]} 3. d4 {[%clk 01:31:49]} {[%emt 00:00:04]} cxd4 {[%clk
01:31:27]} {[%emt 00:00:08]} 4. Nxd4 {[%clk 01:32:16]} {[%emt 00:00:02]} a6
{[%clk 01:31:45]} {[%emt 00:00:13]} 5. Nc3 {[%clk 01:32:41]} {[%emt 00:00:05]}
Qc7 {[%clk 01:31:57]} {[%emt 00:00:17]} 6. Bd3 {[%clk 01:33:07]} {[%emt
00:00:04]} Nf6 {[%clk 01:32:06]} {[%emt 00:00:21]} 7. Qe2 {[%clk 01:33:33]}
{[%emt 00:00:05]} d6 {[%clk 01:27:28]} {[%emt 00:05:07]} 8. f4 {[%clk
01:33:46]} {[%emt 00:00:18]} Nbd7 {[%clk 01:26:14]} {[%emt 00:01:44]} 9. g4
{[%clk 01:34:09]} {[%emt 00:00:07]} Nc5 {[%clk 01:19:05]} {[%emt 00:07:38]} 10.
g5 {[%clk 01:34:34]} {[%emt 00:00:05]} Nfd7 {[%clk 01:19:06]} {[%emt 00:00:29]}
11. h4 {[%clk 01:35:01]} {[%emt 00:00:05]} b5 {[%clk 01:07:18]} {[%emt
00:12:17]} 12. a3 {[%clk 01:34:35]} {[%emt 00:00:57]} Bb7 {[%clk 01:06:47]}
{[%emt 00:01:00]} 13. Bd2 {[%clk 01:34:57]} {[%emt 00:00:08]} Be7 {[%clk
00:50:19]} {[%emt 00:16:58]} 14. O-O-O {[%clk 01:22:44]} {[%emt 00:12:43]}
Nxd3+ {[%clk 00:48:22]} {[%emt 00:02:27]} 15. cxd3 {[%clk 01:14:05]} {[%emt
00:09:09]} d5 {[%clk 00:39:10]} {[%emt 00:09:41]} 16. e5 {[%clk 00:53:52]}
{[%emt 00:20:44]} b4 {[%clk 00:30:42]} {[%emt 00:08:59]} 17. axb4 {[%clk
00:53:58]} {[%emt 00:00:23]} Bxb4 {[%clk 00:29:58]} {[%emt 00:01:13]} 18. h5
{[%clk 00:44:15]} {[%emt 00:10:14]} Nc5 {[%clk 00:10:56]} {[%emt 00:19:32]} 19.
Kb1 {[%clk 00:38:44]} {[%emt 00:06:01]} Qb6 {[%clk 00:11:22]} {[%emt 00:00:05]}
20. g6 {[%clk 00:27:49]} {[%emt 00:11:24]} Bxc3 {[%clk 00:01:40]} {[%emt
00:10:12]} 21. Bxc3 {[%clk 00:28:10]} {[%emt 00:00:10]} Na4 {[%clk 00:01:58]}
{[%emt 00:00:12]} 22. Qc2 {[%clk 00:20:39]} {[%emt 00:08:01]} Nxc3+ {[%clk
00:01:50]} {[%emt 00:00:38]} 23. Qxc3 {[%clk 00:21:07]} {[%emt 00:00:01]} O-O
{[%clk 00:01:44]} {[%emt 00:00:36]} 24. h6 {[%clk 00:12:35]} {[%emt 00:09:02]}
fxg6 {[%clk 00:01:23]} {[%emt 00:00:51]} 25. hxg7 {[%clk 00:13:04]} {[%emt
00:00:01]} Rxf4 {[%clk 00:01:24]} {[%emt 00:00:30]} 26. Nc2 {[%clk 00:06:34]}
{[%emt 00:07:00]} d4 {[%clk 00:01:35]} {[%emt 00:00:19]} 27. Qd2 {[%clk
00:06:56]} {[%emt 00:00:08]} Rf7 {[%clk 00:01:52]} {[%emt 00:00:13]} 28. Rh4
{[%clk 00:05:48]} {[%emt 00:01:38]} Bd5 {[%clk 00:01:54]} {[%emt 00:00:28]} 29.
Nb4 {[%clk 00:02:49]} {[%emt 00:03:29]} Bb3 {[%clk 00:02:10]} {[%emt 00:00:14]}
30. Rxh7 {[%clk 00:02:54]} {[%emt 00:00:25]} Rxg7 {[%clk 00:01:12]} {[%emt
00:01:27]} 31. Rxg7+ {[%clk 00:02:59]} {[%emt 00:00:25]} Kxg7 {[%clk 00:01:41]}
{[%emt 00:00:02]} 32. Rg1 {[%clk 00:02:14]} {[%emt 00:01:15]} Qb7 {[%clk
00:00:39]} {[%emt 00:01:33]} 33. Qg5 {[%clk 00:01:19]} {[%emt 00:01:24]} Qf7
{[%clk 00:01:01]} {[%emt 00:00:08]} 34. Nc6 {[%clk 00:01:48]} {[%emt 00:00:01]}
Rh8 {[%clk 00:00:45]} {[%emt 00:00:46]} 35. Ne7 {[%clk 00:00:38]} {[%emt
00:01:40]} Rh6 {[%clk 00:00:52]} {[%emt 00:00:23]} 36. Qf6+ {[%clk 00:00:33]}
{[%emt 00:00:35]} Qxf6 {[%clk 00:01:01]} {[%emt 00:00:21]} 37. exf6+ {[%clk
00:01:02]} Kf7 {[%clk 00:01:12]} {[%emt 00:00:19]} 38. Nc6 {[%clk 00:00:34]}
{[%emt 00:00:58]} Kxf6 {[%clk 00:00:57]} {[%emt 00:00:44]} 39. Rf1+ {[%clk
00:00:38]} {[%emt 00:00:27]} Kg7 {[%clk 00:00:58]} {[%emt 00:00:29]} 40. Nxd4
{[%clk 00:01:04]} {[%emt 00:00:04]} Bd5 {[%clk 00:01:13]} {[%emt 00:00:14]} 41.
Kc2 {[%clk 00:00:49]} {[%emt 00:00:45]} g5 {[%clk 00:26:30]} {[%emt 00:05:14]}
42. Kc3 {[%clk 00:28:16]} {[%emt 00:03:03]} g4 {[%clk 00:21:30]} {[%emt
00:05:30]} 43. Ne2 {[%clk 00:22:22]} {[%emt 00:06:24]} Bf3 {[%clk 00:16:44]}
{[%emt 00:05:16]} 44. Nd4 {[%clk 00:21:15]} {[%emt 00:01:36]} Bd5 {[%clk
00:16:46]} {[%emt 00:00:29]} 45. Ne2 {[%clk 00:21:40]} {[%emt 00:00:05]} Kg6
{[%clk 00:14:04]} {[%emt 00:03:12]} 46. Ra1 {[%clk 00:15:40]} {[%emt 00:06:30]}
Bb7 {[%clk 00:11:42]} {[%emt 00:02:52]} 47. Ra5 {[%clk 00:12:24]} {[%emt
00:03:46]} Rh2 {[%clk 00:10:55]} {[%emt 00:01:16]} 48. Nf4+ {[%clk 00:10:46]}
{[%emt 00:02:08]} Kf6 {[%clk 00:11:18]} {[%emt 00:00:08]} 49. Nh5+ {[%clk
00:10:52]} {[%emt 00:00:24]} Ke7 {[%emt 00:06:58]} 50. Rg5 {[%clk 00:08:41]}
Bf3 {[%clk 00:07:29]} {[%emt 00:00:30]} 51. d4 {[%clk 00:07:16]} {[%emt
00:01:55]} Rh1 {[%clk 00:06:46]} {[%emt 00:01:14]} 52. Rg7+ {[%clk 00:05:23]}
{[%emt 00:02:23]} Kd6 {[%clk 00:06:17]} {[%emt 00:00:59]} 53. Nf4 {[%clk
00:05:46]} {[%emt 00:00:07]} Rc1+ {[%clk 00:03:14]} {[%emt 00:03:33]} 54. Kd2
{[%clk 00:04:18]} {[%emt 00:01:58]} Rd1+ {[%clk 00:03:42]} {[%emt 00:00:01]} 55.
Kc3 {[%clk 00:04:33]} {[%emt 00:00:16]} Rc1+ {[%clk 00:03:01]} {[%emt
00:01:11]} 56. Kd2 {[%clk 00:04:59]} {[%emt 00:00:03]} Rc6 {[%clk 00:01:47]}
{[%emt 00:01:44]} 57. Nd3 {[%clk 00:02:55]} {[%emt 00:02:35]} Rb6 {[%clk
00:01:36]} {[%emt 00:00:42]} 58. Ne5 {[%clk 00:02:39]} {[%emt 00:00:45]} Kd5
{[%clk 00:01:27]} {[%emt 00:00:39]} 59. Kd3 {[%clk 00:01:32]} {[%emt 00:01:36]}
Rb3+ {[%clk 00:01:15]} {[%emt 00:00:43]} 60. Kc2 {[%clk 00:01:56]} {[%emt
00:00:05]} Rb4 {[%clk 00:01:21]} {[%emt 00:00:25]} 61. Kc3 {[%clk 00:01:32]}
{[%emt 00:00:54]} a5 {[%clk 00:01:16]} {[%emt 00:00:34]} 62. b3 {[%clk
00:00:42]} {[%emt 00:01:21]} Bd1 {[%clk 00:00:58]} {[%emt 00:00:48]} 63. Rg5
{[%clk 00:00:42]} {[%emt 00:00:29]} Rxb3+ {[%clk 00:00:34]} {[%emt 00:00:55]}
64. Kd2 {[%clk 00:01:12]} Rb1 {[%clk 00:00:46]} {[%emt 00:00:18]} 65. Nxg4+
{[%clk 00:01:11]} {[%emt 00:00:31]} Kxd4 {[%clk 00:01:12]} {[%emt 00:00:04]} 66.
Rxa5 {[%clk 00:00:57]} {[%emt 00:00:44]} Bxg4 {[%clk 00:00:54]} {[%emt
00:00:48]} 67. Ra4+ {[%clk 00:01:24]} {[%emt 00:00:04]} Ke5 {[%clk 00:00:49]}
{[%emt 00:00:34]} 68. Rxg4 {[%clk 00:01:49]} {[%emt 00:00:05]} Rb2+ {[%clk
00:01:04]} {[%emt 00:00:16]} 69. Ke3 {[%clk 00:02:12]} {[%emt 00:00:06]} Rb3+
{[%clk 00:01:28]} {[%emt 00:00:06]} 70. Ke2 {[%clk 00:02:37]} {[%emt 00:00:04]}
Kf5 {[%clk 00:01:52]} {[%emt 00:00:06]} 71. Ra4 {[%clk 00:03:03]} {[%emt
00:00:05]} e5 {[%clk 00:02:15]} {[%emt 00:00:07]} 72. Rc4 {[%clk 00:03:27]}
{[%emt 00:00:05]} Rb2+ {[%clk 00:02:30]} {[%emt 00:00:16]} 73. Ke3 {[%clk
00:03:51]} {[%emt 00:00:05]} Rb3+ {[%clk 00:02:56]} {[%emt 00:00:05]} 74. Ke2
{[%clk 00:04:18]} {[%emt 00:00:03]} Rh3 {[%clk 00:02:45]} {[%emt 00:00:41]} 75.
Ra4 {[%clk 00:04:43]} {[%emt 00:00:05]} 1/2-1/2